[Event "*** SCC Grand Prix: Titled Tuesday Blitz"]
[Site "Chess.com"]
[Date "2020.07.07"]
[Round "10"]
[White "Artem_Sadovsky"]
[Black "coalescenet"]
[Result "1-0"]
[WhiteElo "2537"]
[BlackElo "2409"]
[TimeControl "180+1"]
[EndTime "11:59:58 PDT"]
[Termination "Artem_Sadovsky won by resignation"]

1. Nf3 {[%clk 0:03:00.9]} 1... d5 {[%clk 0:02:58.7]} 2. g3 {[%clk 0:02:57.6]}
2... Nf6 {[%clk 0:02:59.1]} 3. Bg2 {[%clk 0:02:58.2]} 3... e6 {[%clk 0:02:59.7]}
4. O-O {[%clk 0:02:58.8]} 4... Be7 {[%clk 0:03:00.4]} 5. c4 {[%clk 0:02:59.4]}
5... O-O {[%clk 0:03:00]} 6. b3 {[%clk 0:02:59.9]} 6... b6 {[%clk 0:03:00.5]} 7.
Bb2 {[%clk 0:03:00.4]} 7... Bb7 {[%clk 0:02:59.7]} 8. d3 {[%clk 0:03:00.9]} 8...
c5 {[%clk 0:02:59.3]} 9. Nbd2 {[%clk 0:03:01.5]} 9... Na6 {[%clk 0:02:52.6]} 10.
Qc2 {[%clk 0:03:01.6]} 10... Nb4 {[%clk 0:02:52.2]} 11. Qb1 {[%clk 0:03:01.5]}
11... d4 {[%clk 0:02:49.4]} 12. a3 {[%clk 0:02:59]} 12... Na6 {[%clk 0:02:46]}
13. b4 {[%clk 0:02:54.5]} 13... Bd6 {[%clk 0:02:28.2]} 14. b5 {[%clk 0:02:47.3]}
14... Nc7 {[%clk 0:02:28]} 15. Ng5 {[%clk 0:02:44.2]} 15... Qc8 {[%clk
0:02:23.5]} 16. Nge4 {[%clk 0:02:36.8]} 16... Nxe4 {[%clk 0:02:21]} 17. Bxe4
{[%clk 0:02:26]} 17... e5 {[%clk 0:02:13.5]} 18. a4 {[%clk 0:02:16]} 18... f5
{[%clk 0:02:10.2]} 19. Bxb7 {[%clk 0:02:12.6]} 19... Qxb7 {[%clk 0:02:10.8]} 20.
a5 {[%clk 0:02:13]} 20... Ne6 {[%clk 0:02:00.3]} 21. axb6 {[%clk 0:02:03.4]}
21... axb6 {[%clk 0:01:59.6]} 22. Qc2 {[%clk 0:01:59.8]} 22... Ng5 {[%clk
0:01:53.9]} 23. h4 {[%clk 0:02:00.2]} 23... Nf7 {[%clk 0:01:40.2]} 24. Rxa8
{[%clk 0:02:00.8]} 24... Rxa8 {[%clk 0:01:39.7]} 25. Ra1 {[%clk 0:02:01.7]}
25... g6 {[%clk 0:01:32.7]} 26. Ra4 {[%clk 0:01:54.4]} 26... Ra7 {[%clk
0:01:26.9]} 27. Bc1 {[%clk 0:01:54.6]} 27... Qa8 {[%clk 0:01:25.9]} 28. Rxa7
{[%clk 0:01:51.5]} 28... Qxa7 {[%clk 0:01:26.5]} 29. Nb3 {[%clk 0:01:50.4]}
29... Kg7 {[%clk 0:01:20.2]} 30. Qb2 {[%clk 0:01:47.6]} 30... Qb7 {[%clk
0:01:10.2]} 31. Qa2 {[%clk 0:01:46.3]} 31... e4 {[%clk 0:01:09.9]} 32. Qa6
{[%clk 0:01:44.4]} 32... Nd8 {[%clk 0:01:08.7]} 33. Bg5 {[%clk 0:01:41.1]} 33...
Qxa6 {[%clk 0:01:04.8]} 34. bxa6 {[%clk 0:01:42]} 34... Nc6 {[%clk 0:01:04.2]}
35. Bd8 {[%clk 0:01:39]} 35... Bb8 {[%clk 0:00:46]} 36. Bxb6 {[%clk 0:01:37.7]}
36... exd3 {[%clk 0:00:33.2]} 37. exd3 {[%clk 0:01:37.4]} 37... Nb4 {[%clk
0:00:33.6]} 38. a7 {[%clk 0:01:36.7]} 38... Bxa7 {[%clk 0:00:33.1]} 39. Bxa7
{[%clk 0:01:37.6]} 39... Nxd3 {[%clk 0:00:33.3]} 40. Bxc5 {[%clk 0:01:38.5]}
40... Kf7 {[%clk 0:00:28.4]} 41. Bxd4 {[%clk 0:01:38.7]} 41... f4 {[%clk
0:00:20]} 42. Kf1 {[%clk 0:01:38.4]} 42... fxg3 {[%clk 0:00:19.5]} 43. fxg3
{[%clk 0:01:39.3]} 43... h6 {[%clk 0:00:19.9]} 44. Ke2 {[%clk 0:01:39.4]} 44...
Nb4 {[%clk 0:00:18.9]} 45. Kd2 {[%clk 0:01:39.9]} 45... g5 {[%clk 0:00:18.7]}
46. hxg5 {[%clk 0:01:39.5]} 46... hxg5 {[%clk 0:00:19.6]} 47. g4 {[%clk
0:01:40.2]} 47... Nc6 {[%clk 0:00:17.1]} 48. Bc3 {[%clk 0:01:40.6]} 48... Ke6
{[%clk 0:00:16.3]} 49. Kd3 {[%clk 0:01:41.2]} 49... Nd8 {[%clk 0:00:16]} 50. Nd2
{[%clk 0:01:41.3]} 50... Nf7 {[%clk 0:00:15.3]} 51. Ne4 {[%clk 0:01:41.9]} 51...
Kd7 {[%clk 0:00:13.7]} 52. Bf6 {[%clk 0:01:42.2]} 52... Kc6 {[%clk 0:00:13.9]}
53. Bxg5 {[%clk 0:01:42.8]} 53... Ne5+ {[%clk 0:00:14]} 54. Kc3 {[%clk
0:01:41.5]} 54... Nxg4 {[%clk 0:00:14.9]} 55. Bf4 {[%clk 0:01:41.9]} 55... Kd7
{[%clk 0:00:12]} 56. Kd4 {[%clk 0:01:41.7]} 56... Ke6 {[%clk 0:00:12]} 57. c5
{[%clk 0:01:41.4]} 57... Kd7 {[%clk 0:00:07.9]} 58. Kd5 {[%clk 0:01:39]} 58...
Kd8 {[%clk 0:00:06.8]} 59. c6 {[%clk 0:01:39.5]} 59... Kc8 {[%clk 0:00:07.3]}
60. Ke6 {[%clk 0:01:37.6]} 60... Kd8 {[%clk 0:00:05.1]} 61. Kf5 {[%clk
0:01:37.8]} 61... Ne3+ {[%clk 0:00:03.3]} 62. Ke6 {[%clk 0:01:09.9]} 62... Nc4
{[%clk 0:00:04.2]} 63. Kd5 {[%clk 0:00:59.1]} 63... Nb6+ {[%clk 0:00:04.5]} 64.
Kc5 {[%clk 0:00:55.7]} 64... Na8 {[%clk 0:00:05.4]} 65. Nd6 {[%clk 0:00:46]}
65... Kc7 {[%clk 0:00:04.8]} 66. Nc4+ {[%clk 0:00:43.8]} 66... Kc8 {[%clk
0:00:05.4]} 67. Bd6 {[%clk 0:00:32.3]} 67... Nc7 {[%clk 0:00:04.5]} 68. Nb6+
{[%clk 0:00:30.9]} 68... Kb8 {[%clk 0:00:04]} 69. Nd7+ {[%clk 0:00:28.8]} 69...
Kc8 {[%clk 0:00:04.3]} 70. Nb6+ {[%clk 0:00:23.5]} 70... Kb8 {[%clk 0:00:04.2]}
71. Nd5 {[%clk 0:00:23.9]} 71... Kc8 {[%clk 0:00:02.2]} 72. Nxc7 {[%clk
0:00:14.5]} 72... Kb8 {[%clk 0:00:03.1]} 73. Kb6 {[%clk 0:00:12.1]} 73... Kc8
{[%clk 0:00:03.2]} 74. Nd5 {[%clk 0:00:11.5]} 74... Kd8 {[%clk 0:00:03.2]} 75.
Nb4 {[%clk 0:00:12.4]} 75... Kc8 {[%clk 0:00:04.1]} 76. Bc5 {[%clk 0:00:13.3]}
76... Kd8 {[%clk 0:00:04.7]} 77. Bd4 {[%clk 0:00:14.2]} 77... Kc8 {[%clk
0:00:05.6]} 78. Bc3 {[%clk 0:00:15.1]} 78... Kd8 {[%clk 0:00:06.5]} 79. Nc2
{[%clk 0:00:15.5]} 79... Kc8 {[%clk 0:00:07.4]} 80. Bb2 {[%clk 0:00:16.4]} 80...
Kd8 {[%clk 0:00:08.3]} 81. Bc1 {[%clk 0:00:17.3]} 81... Kc8 {[%clk 0:00:08.6]}
82. Na1 {[%clk 0:00:17.1]} 82... Kd8 {[%clk 0:00:09.5]} 83. Bb2 {[%clk 0:00:18]}
83... Kc8 {[%clk 0:00:10.4]} 84. Ba3 {[%clk 0:00:18.9]} 84... Kb8 {[%clk
0:00:10.4]} 85. Kb5 {[%clk 0:00:19.8]} 85... Kc8 {[%clk 0:00:11.3]} 86. Kc5
{[%clk 0:00:20.7]} 86... Kb8 {[%clk 0:00:12.2]} 87. Kd5 {[%clk 0:00:21.6]} 87...
Kc8 {[%clk 0:00:13.1]} 88. Bb4 {[%clk 0:00:22.5]} 88... Kd8 {[%clk 0:00:13.8]}
89. Bc3 {[%clk 0:00:23.4]} 89... Kc8 {[%clk 0:00:14.7]} 90. Bd4 {[%clk
0:00:24.3]} 90... Kd8 {[%clk 0:00:15.6]} 91. Nb3 {[%clk 0:00:25.2]} 91... Kc7
{[%clk 0:00:16.5]} 92. Nd2 {[%clk 0:00:26.1]} 92... Kc8 {[%clk 0:00:17]} 93. Ne4
{[%clk 0:00:27]} 93... Kd8 {[%clk 0:00:17.7]} 94. Kc4 {[%clk 0:00:26.9]} 94...
Kc7 {[%clk 0:00:18.6]} 95. Kb5 {[%clk 0:00:27.8]} 95... Kc8 {[%clk 0:00:19.5]}
96. Nc5 {[%clk 0:00:28.5]} 96... Kd8 {[%clk 0:00:20.3]} 97. Na6 {[%clk
0:00:28.9]} 97... Kc8 {[%clk 0:00:21.2]} 98. Kb6 {[%clk 0:00:29.5]} 98... Kd8
{[%clk 0:00:21.3]} 99. Kb7 {[%clk 0:00:30.4]} 99... Ke7 {[%clk 0:00:21.4]} 100.
Ba7 {[%clk 0:00:31.3]} 100... Kd6 {[%clk 0:00:21.8]} 101. c7 {[%clk 0:00:32.2]}
101... Kd5 {[%clk 0:00:22]} 1-0

[Event "*** SCC Grand Prix: Titled Tuesday Blitz"]
[Site "Chess.com"]
[Date "2020.07.07"]
[Round "10"]
[White "Vaathi_Coming"]
[Black "Micki-taryan"]
[Result "1-0"]
[WhiteElo "2919"]
[BlackElo "3038"]
[TimeControl "180+1"]
[EndTime "11:59:59 PDT"]
[Termination "Vaathi_Coming won by checkmate"]

1. Nf3 {[%clk 0:03:00.9]} 1... Nf6 {[%clk 0:02:59.9]} 2. d4 {[%clk 0:03:01.4]}
2... e6 {[%clk 0:02:59.2]} 3. Bg5 {[%clk 0:03:00.5]} 3... h6 {[%clk 0:02:56.8]}
4. Bxf6 {[%clk 0:02:55.9]} 4... Qxf6 {[%clk 0:02:57.7]} 5. Nc3 {[%clk
0:02:56.2]} 5... Bb4 {[%clk 0:02:54.5]} 6. e4 {[%clk 0:02:56.1]} 6... Nc6 {[%clk
0:02:50.3]} 7. a3 {[%clk 0:02:55.2]} 7... Bxc3+ {[%clk 0:02:49.7]} 8. bxc3
{[%clk 0:02:56.1]} 8... e5 {[%clk 0:02:48.8]} 9. Bb5 {[%clk 0:02:50.7]} 9... O-O
{[%clk 0:02:42.7]} 10. Bxc6 {[%clk 0:02:44.7]} 10... Qxc6 {[%clk 0:02:41]} 11.
Qd3 {[%clk 0:02:28.3]} 11... d6 {[%clk 0:02:26.9]} 12. O-O {[%clk 0:02:17.4]}
12... Re8 {[%clk 0:02:14.2]} 13. Nd2 {[%clk 0:02:12.9]} 13... exd4 {[%clk
0:02:04.1]} 14. cxd4 {[%clk 0:02:11.6]} 14... d5 {[%clk 0:02:03]} 15. e5 {[%clk
0:02:07.6]} 15... Qg6 {[%clk 0:01:39.7]} 16. Qe3 {[%clk 0:01:44.6]} 16... Bf5
{[%clk 0:01:30.1]} 17. c3 {[%clk 0:01:44.1]} 17... c6 {[%clk 0:01:27.1]} 18. f4
{[%clk 0:01:43.5]} 18... b6 {[%clk 0:01:17.2]} 19. h3 {[%clk 0:01:42]} 19... h5
{[%clk 0:01:13.5]} 20. Kh2 {[%clk 0:01:36.9]} 20... Rac8 {[%clk 0:01:09.5]} 21.
Nf3 {[%clk 0:01:35.7]} 21... c5 {[%clk 0:01:03]} 22. Nh4 {[%clk 0:01:29.5]}
22... Qh7 {[%clk 0:01:01.9]} 23. Rac1 {[%clk 0:01:05.2]} 23... Rc6 {[%clk
0:00:59.2]} 24. Qd2 {[%clk 0:00:51.9]} 24... Rec8 {[%clk 0:00:58.5]} 25. c4
{[%clk 0:00:52]} 25... cxd4 {[%clk 0:00:42.5]} 26. cxd5 {[%clk 0:00:51.4]} 26...
Rc3 {[%clk 0:00:42.9]} 27. Nf3 {[%clk 0:00:24]} 27... Rxc1 {[%clk 0:00:24.8]}
28. Rxc1 {[%clk 0:00:24.9]} 28... Rxc1 {[%clk 0:00:25]} 29. Qxc1 {[%clk
0:00:25.7]} 29... d3 {[%clk 0:00:25.9]} 30. Qc7 {[%clk 0:00:20.4]} 30... g5
{[%clk 0:00:16.6]} 31. Qd8+ {[%clk 0:00:16.9]} 31... Kg7 {[%clk 0:00:16.5]} 32.
Qf6+ {[%clk 0:00:13.9]} 32... Kg8 {[%clk 0:00:16.2]} 33. e6 {[%clk 0:00:05.8]}
33... fxe6 {[%clk 0:00:13.8]} 34. Qd8+ {[%clk 0:00:05.9]} 34... Kg7 {[%clk
0:00:13.4]} 35. Nxg5 {[%clk 0:00:06.2]} 35... Qg6 {[%clk 0:00:13.6]} 36. dxe6
{[%clk 0:00:05.8]} 36... Bxe6 {[%clk 0:00:12.5]} 37. Qd4+ {[%clk 0:00:04.2]}
37... Kg8 {[%clk 0:00:11.1]} 38. Qd8+ {[%clk 0:00:03.9]} 38... Kg7 {[%clk
0:00:10.7]} 39. Qe7+ {[%clk 0:00:03.9]} 39... Bf7 {[%clk 0:00:11.2]} 40. Qe5+
{[%clk 0:00:03.8]} 40... Qf6 {[%clk 0:00:11.7]} 41. Qe3 {[%clk 0:00:02.4]} 41...
Bg6 {[%clk 0:00:12.2]} 42. Ne6+ {[%clk 0:00:01.7]} 42... Kh6 {[%clk 0:00:12.4]}
43. Ng5 {[%clk 0:00:02.6]} 43... Bf5 {[%clk 0:00:11.2]} 44. Nf3 {[%clk
0:00:02.6]} 44... Qd6 {[%clk 0:00:09.8]} 45. Ne5 {[%clk 0:00:02.8]} 45... Kg7
{[%clk 0:00:08.2]} 46. Qg3+ {[%clk 0:00:03]} 46... Kf8 {[%clk 0:00:08.4]} 47.
Nc4 {[%clk 0:00:03]} 47... Qd4 {[%clk 0:00:07]} 48. Nd2 {[%clk 0:00:03.3]} 48...
Qc3 {[%clk 0:00:07.1]} 49. Qe3 {[%clk 0:00:03.5]} 49... h4 {[%clk 0:00:06.6]}
50. Nf3 {[%clk 0:00:02]} 50... Qf6 {[%clk 0:00:07]} 51. Qd2 {[%clk 0:00:01.7]}
51... a5 {[%clk 0:00:06]} 52. Ne5 {[%clk 0:00:02.3]} 52... Kg7 {[%clk
0:00:05.4]} 53. Qc3 {[%clk 0:00:02.7]} 53... Be4 {[%clk 0:00:05.7]} 54. Qc7+
{[%clk 0:00:02.5]} 54... Kg8 {[%clk 0:00:06.3]} 55. Qc8+ {[%clk 0:00:02.3]}
55... Kg7 {[%clk 0:00:06.9]} 56. Qg4+ {[%clk 0:00:02.5]} 56... Kh7 {[%clk
0:00:07.1]} 57. Qh5+ {[%clk 0:00:02.4]} 57... Kg7 {[%clk 0:00:07]} 58. Qg4+
{[%clk 0:00:02.4]} 58... Bg6 {[%clk 0:00:05.8]} 59. Qd7+ {[%clk 0:00:02.6]}
59... Kg8 {[%clk 0:00:05.5]} 60. Qd4 {[%clk 0:00:02.8]} 60... Bf5 {[%clk
0:00:05.3]} 61. Qd5+ {[%clk 0:00:03]} 61... Kg7 {[%clk 0:00:04]} 62. Nf3 {[%clk
0:00:03.1]} 62... a4 {[%clk 0:00:02.6]} 63. Ne5 {[%clk 0:00:03]} 63... Kh7
{[%clk 0:00:01.2]} 64. Qd4 {[%clk 0:00:03.5]} 64... Kg7 {[%clk 0:00:02.1]} 65.
Qd5 {[%clk 0:00:03.8]} 65... Bh7 {[%clk 0:00:02.7]} 66. Qb7+ {[%clk 0:00:03.8]}
66... Kh6 {[%clk 0:00:03]} 67. Ng4+ {[%clk 0:00:03]} 67... Kg6 {[%clk
0:00:03.6]} 68. Nxf6 {[%clk 0:00:03.6]} 68... Bg8 {[%clk 0:00:04.5]} 69. Nxg8
{[%clk 0:00:03.5]} 69... d2 {[%clk 0:00:05.4]} 70. Ne7+ {[%clk 0:00:04.1]} 70...
Kf6 {[%clk 0:00:05.4]} 71. Qd5 {[%clk 0:00:05]} 71... Kxe7 {[%clk 0:00:05.6]}
72. Qxd2 {[%clk 0:00:05.4]} 72... b5 {[%clk 0:00:06.5]} 73. Qb4+ {[%clk
0:00:06.2]} 73... Kf6 {[%clk 0:00:07.4]} 74. Qxb5 {[%clk 0:00:06.8]} 74... Kg6
{[%clk 0:00:08.3]} 75. Qc5 {[%clk 0:00:07.4]} 75... Kh6 {[%clk 0:00:08.4]} 76.
Qb5 {[%clk 0:00:08.3]} 76... Kg6 {[%clk 0:00:09.1]} 77. Kg1 {[%clk 0:00:09.2]}
77... Kf6 {[%clk 0:00:10]} 78. Kf2 {[%clk 0:00:10.1]} 78... Kg6 {[%clk
0:00:10.9]} 79. Kf3 {[%clk 0:00:11]} 79... Kh6 {[%clk 0:00:11.8]} 80. Kg4 {[%clk
0:00:11.9]} 80... Kg6 {[%clk 0:00:12.7]} 81. Kxh4 {[%clk 0:00:12.8]} 81... Kf6
{[%clk 0:00:13.6]} 82. Kg4 {[%clk 0:00:13.7]} 82... Ke6 {[%clk 0:00:14.5]} 83.
Qe5+ {[%clk 0:00:14.1]} 83... Kf7 {[%clk 0:00:15.4]} 84. h4 {[%clk 0:00:14.5]}
84... Kf8 {[%clk 0:00:16.3]} 85. Kg5 {[%clk 0:00:15]} 85... Kg8 {[%clk
0:00:17.2]} 86. Qe7 {[%clk 0:00:15]} 86... Kh8 {[%clk 0:00:17.5]} 87. Kg6 {[%clk
0:00:15.7]} 87... Kg8 {[%clk 0:00:18.4]} 88. Qe8# {[%clk 0:00:16.2]} 1-0

[Event "*** SCC Grand Prix: Titled Tuesday Blitz"]
[Site "Chess.com"]
[Date "2020.07.07"]
[Round "10"]
[White "Mikhail_Golubev"]
[Black "dopolian"]
[Result "1/2-1/2"]
[WhiteElo "2588"]
[BlackElo "2427"]
[TimeControl "180+1"]
[EndTime "11:59:59 PDT"]
[Termination "Game drawn - insufficient material"]

1. e4 {[%clk 0:03:00.9]} 1... e5 {[%clk 0:02:59.8]} 2. Nf3 {[%clk 0:03:00.3]}
2... Nc6 {[%clk 0:03:00.1]} 3. Nc3 {[%clk 0:03:00]} 3... Nf6 {[%clk 0:03:00]} 4.
d4 {[%clk 0:03:00]} 4... exd4 {[%clk 0:03:00]} 5. Nxd4 {[%clk 0:03:00.2]} 5...
Bb4 {[%clk 0:03:00]} 6. Nxc6 {[%clk 0:03:00.3]} 6... bxc6 {[%clk 0:03:00.9]} 7.
Bd3 {[%clk 0:03:00.3]} 7... d5 {[%clk 0:03:01.1]} 8. exd5 {[%clk 0:03:00.4]}
8... cxd5 {[%clk 0:03:01.3]} 9. O-O {[%clk 0:02:59.3]} 9... O-O {[%clk
0:03:00.7]} 10. Bg5 {[%clk 0:02:59]} 10... c6 {[%clk 0:03:01]} 11. Na4 {[%clk
0:02:58.8]} 11... Be6 {[%clk 0:02:54.3]} 12. c3 {[%clk 0:02:55.3]} 12... Be7
{[%clk 0:02:52.6]} 13. Re1 {[%clk 0:02:50.3]} 13... h6 {[%clk 0:02:47.8]} 14.
Bh4 {[%clk 0:02:46.8]} 14... Nd7 {[%clk 0:02:44.5]} 15. Bxe7 {[%clk 0:02:40.3]}
15... Qxe7 {[%clk 0:02:43.6]} 16. Bc2 {[%clk 0:02:40.4]} 16... Nb6 {[%clk
0:02:38.4]} 17. Qd3 {[%clk 0:02:32.3]} 17... g6 {[%clk 0:02:31.6]} 18. Nxb6
{[%clk 0:02:26.6]} 18... axb6 {[%clk 0:02:30.8]} 19. Qe3 {[%clk 0:02:26.8]}
19... Qg5 {[%clk 0:02:00.9]} 20. Qxg5 {[%clk 0:02:14.7]} 20... hxg5 {[%clk
0:02:00.3]} 21. Bxg6 {[%clk 0:02:14.5]} 21... Kg7 {[%clk 0:01:54.8]} 22. Bd3
{[%clk 0:02:12.2]} 22... Kf6 {[%clk 0:01:54.4]} 23. h3 {[%clk 0:02:05.5]} 23...
b5 {[%clk 0:01:47.9]} 24. f3 {[%clk 0:02:02.5]} 24... Rfe8 {[%clk 0:01:46.5]}
25. a3 {[%clk 0:02:01.5]} 25... Bf5 {[%clk 0:01:43]} 26. Bf1 {[%clk 0:01:56.5]}
26... Red8 {[%clk 0:01:26.3]} 27. Rad1 {[%clk 0:01:54.7]} 27... Ra7 {[%clk
0:01:20.5]} 28. Kf2 {[%clk 0:01:45.5]} 28... Rad7 {[%clk 0:01:20.1]} 29. Ke3
{[%clk 0:01:27.6]} 29... Re7+ {[%clk 0:01:16.2]} 30. Kd4 {[%clk 0:01:24.6]}
30... Red7 {[%clk 0:00:51]} 31. Kc5 {[%clk 0:01:20.8]} 31... Rd6 {[%clk
0:00:47.1]} 32. Rd4 {[%clk 0:01:18]} 32... Bc2 {[%clk 0:00:33.7]} 33. h4 {[%clk
0:01:15.5]} 33... gxh4 {[%clk 0:00:30.6]} 34. Rxh4 {[%clk 0:01:15]} 34... Bg6
{[%clk 0:00:27.1]} 35. a4 {[%clk 0:01:10.9]} 35... bxa4 {[%clk 0:00:26.1]} 36.
Rxa4 {[%clk 0:01:09.9]} 36... Re6 {[%clk 0:00:11.1]} 37. Rxe6+ {[%clk
0:01:08.5]} 37... fxe6 {[%clk 0:00:12]} 38. Kxc6 {[%clk 0:01:04.1]} 38... e5
{[%clk 0:00:12.2]} 39. Kc7 {[%clk 0:00:58.6]} 39... Rh8 {[%clk 0:00:09.1]} 40.
Ra6+ {[%clk 0:00:55.1]} 40... Kf7 {[%clk 0:00:09.5]} 41. Kd6 {[%clk 0:00:44.4]}
41... Rh1 {[%clk 0:00:09.1]} 42. Bb5 {[%clk 0:00:40]} 42... d4 {[%clk
0:00:09.1]} 43. cxd4 {[%clk 0:00:31.8]} 43... exd4 {[%clk 0:00:09.2]} 44. Ke5
{[%clk 0:00:30.4]} 44... d3 {[%clk 0:00:09.4]} 45. Rd6 {[%clk 0:00:29.3]} 45...
Rd1 {[%clk 0:00:07.4]} 46. Kf4 {[%clk 0:00:24.9]} 46... Rd2 {[%clk 0:00:06.5]}
47. g4 {[%clk 0:00:20.5]} 47... Kg7 {[%clk 0:00:06.5]} 48. b3 {[%clk 0:00:17.5]}
48... Kh7 {[%clk 0:00:02.3]} 49. b4 {[%clk 0:00:17.4]} 49... Kg7 {[%clk
0:00:02.7]} 50. Bc4 {[%clk 0:00:17.7]} 50... Rb2 {[%clk 0:00:02.5]} 51. b5
{[%clk 0:00:17]} 51... Rb4 {[%clk 0:00:02.6]} 52. Rc6 {[%clk 0:00:14.2]} 52...
d2 {[%clk 0:00:02.4]} 53. Rc7+ {[%clk 0:00:12]} 53... Kf6 {[%clk 0:00:02.1]} 54.
Rd7 {[%clk 0:00:11.7]} 54... Rxc4+ {[%clk 0:00:01.9]} 55. Ke3 {[%clk 0:00:11.9]}
55... Rb4 {[%clk 0:00:02.4]} 56. Rd6+ {[%clk 0:00:11]} 56... Kf7 {[%clk
0:00:02.2]} 57. Rxd2 {[%clk 0:00:10.5]} 57... Rxb5 {[%clk 0:00:02.4]} 58. Rd7+
{[%clk 0:00:10.3]} 58... Ke6 {[%clk 0:00:02.2]} 59. Ra7 {[%clk 0:00:10.8]} 59...
Rb3+ {[%clk 0:00:02.5]} 60. Kf4 {[%clk 0:00:10.1]} 60... Rb4+ {[%clk 0:00:02.5]}
61. Kg5 {[%clk 0:00:10.3]} 61... Bd3 {[%clk 0:00:03.2]} 62. f4 {[%clk
0:00:10.5]} 62... Be2 {[%clk 0:00:03.8]} 63. f5+ {[%clk 0:00:10.5]} 63... Ke5
{[%clk 0:00:04.5]} 64. Ra5+ {[%clk 0:00:09.7]} 64... Kd6 {[%clk 0:00:04.4]} 65.
f6 {[%clk 0:00:09.5]} 65... Rxg4+ {[%clk 0:00:03.7]} 66. Kf5 {[%clk 0:00:09.8]}
66... Rg2 {[%clk 0:00:03.7]} 67. Ra3 {[%clk 0:00:09]} 67... Rf2+ {[%clk
0:00:03.7]} 68. Kg6 {[%clk 0:00:08.6]} 68... Bc4 {[%clk 0:00:03.9]} 69. Rc3
{[%clk 0:00:06.6]} 69... Bd5 {[%clk 0:00:04.1]} 70. Rd3 {[%clk 0:00:06]} 70...
Ke5 {[%clk 0:00:04.4]} 71. Re3+ {[%clk 0:00:05.1]} 71... Be4+ {[%clk 0:00:04.8]}
72. Rxe4+ {[%clk 0:00:04.6]} 72... Kxe4 {[%clk 0:00:04.4]} 73. f7 {[%clk
0:00:04.9]} 73... Ke5 {[%clk 0:00:04.3]} 74. Kg7 {[%clk 0:00:05]} 74... Rg2+
{[%clk 0:00:04.8]} 75. Kh7 {[%clk 0:00:05.1]} 75... Rh2+ {[%clk 0:00:04.2]} 76.
Kg8 {[%clk 0:00:05.1]} 76... Rg2+ {[%clk 0:00:04.8]} 77. Kh8 {[%clk 0:00:05.1]}
77... Rh2+ {[%clk 0:00:03.3]} 78. Kg8 {[%clk 0:00:05.3]} 78... Rg2+ {[%clk
0:00:03.3]} 79. Kh8 {[%clk 0:00:05.7]} 79... Rf2 {[%clk 0:00:03.9]} 80. Kg8
{[%clk 0:00:05.8]} 80... Ke6 {[%clk 0:00:03.7]} 81. f8=Q {[%clk 0:00:05.6]}
81... Rxf8+ {[%clk 0:00:03.6]} 82. Kxf8 {[%clk 0:00:05.8]} 1/2-1/2